Cogmind - Beta 13 @@@ ROGUE MODE // 2024.03.31 @ 12:20:40 Player: ANickel Result: Self-destructed Performance ------------- Evolutions (1) 500 Regions Visited (3) 600 Robots Destroyed (14) 70 Value Destroyed (204) 204 Prototype IDs (0) 0 Alien Tech Used (0) 0 Bonus (60) 60 TOTAL SCORE: 1434 Bonus ------- Follower Combat Kills 60 Cogmind --------- Core Integrity 400/400 Matter 264/300 Energy 250/250 System Corruption 0% Temperature Cool (0) Movement Hovering (120) Ox1 Location -9/Materials Parts ------- > --- POWER (1) -------- Ion Engine > --- PROPULSION (3) --- Hover Unit > --- UTILITY (3) ------ Structural Scanner Signal Interpreter > --- WEAPON (2) ------- Grenade Launcher Enhanced Flamer > --- INVENTORY (5) ---- Ion Engine Flight Unit Flight Unit Light Assault Rifle Rocket Launcher Peak State ------------ > --- POWER ------------ Ion Engine > --- PROPULSION ------- Hover Unit Hover Unit > --- UTILITY ---------- Structural Scanner Signal Interpreter > --- WEAPON ----------- Grenade Launcher Enhanced Flamer > --- INVENTORY -------- Ion Engine Flight Unit Flight Unit Light Assault Rifle Rocket Launcher [Rating: 9] Favorites ----------- Power Ion Engine Engine Ion Engine Propulsion Hover Unit Wheel Wheel Hover Unit Hover Unit Flight Unit Flight Unit Utility Structural Scanner Device Structural Scanner Storage Small Storage Unit Processor Signal Interpreter Weapon Assault Rifle Energy Gun Small Laser Ballistic Gun Assault Rifle Launcher Grenade Launcher Special Weapon Enhanced Flamer Build | -11 -10 -10 -9 ------- Run | Yrd Mat Min Mat Slots Evolved 2 | . . . 2 Power . | . . . . Propulsion 1 | . . . 1 Utility 1 | . . . 1 Weapon . | . . . . Parts Attached 21 | 6 14 1 . Power 2 | 1 1 . . Engine 2 | 1 1 . . Core . | . . . . Reactor . | . . . . Propulsion 7 | 2 5 . . Treads . | . . . . Leg . | . . . . Wheel 3 | 2 1 . . Hover 2 | . 2 . . Flight 2 | . 2 . . Utility 4 | 1 3 . . Device 2 | . 2 . . Storage 1 | 1 . . . Processor 1 | . 1 . . Hackware . | . . . . Protection . | . . . . Artifact . | . . . . Weapon 8 | 2 5 1 . Energy Gun 1 | 1 . . . Energy Cannon . | . . . . Ballistic Gun 4 | 1 3 . . Ballistic Cannon . | . . . . Launcher 1 | . 1 . . Special Weapon 2 | . 1 1 . Impact Weapon . | . . . . Slashing Weapon . | . . . . Piercing Weapon . | . . . . Special Melee Weapon . | . . . . Unidentified Prototypes . | . . . . Parts Lost 2 | . 1 1 . Power . | . . . . Propulsion 2 | . 1 1 . Utility . | . . . . Weapon . | . . . . Highest Loss Streak 1 | . 1 1 . To Critical Strikes . | . . . . Average Slot Usage (%) 92 | . 86 98 . Engine 14 | . 14 14 . Wheel 8 | . 16 . . Hover 16 | . 5 26 . Flight 2 | . 4 . . Device 11 | . 9 14 . Storage 4 | . 8 . . Processor 8 | . 2 14 . Ballistic Gun 16 | . 22 11 . Launcher 7 | . 1 14 . Special Weapon 1 | . . 2 . Naked Turns . | . . . . Heaviest Build 15 | 11 15 11 11 Greatest Support 20 | 20 20 12 6 Greatest Overweight (x) 1 | . 1 1 1 Average Overweight (x) . | . . . 1 Largest Inventory Capacity 8 | 8 8 5 5 Average Capacity 5 | 6 6 5 5 Most Carried 7 | 4 7 5 5 Average Carried 4 | 1 4 5 5 Final Capacity 8 | 8 5 5 5 Final Carried 5 | 4 5 5 5 Class Distribution -------------------- 100% | Mutant Dominant Class ---------------- Mutant | -10/Materials Mutant | -10/Mines Mutant | -9/Materials Resources | -11 -10 -10 -9 ----------- Run | Yrd Mat Min Mat Matter Collected 566 | 231 260 75 . Remotely . | . . . . Salvage Created 387 | . 367 20 . Parts 26 | . 25 1 . Haulers Intercepted 1 | . 1 . . Recyclers Shooed 1 | . 1 . . Parts Field Recycled . | . . . . Retrieved Matter . | . . . . Parts Self-Destructed . | . . . . Prevented . | . . . . Kills | -11 -10 -10 -9 ------- Run | Yrd Mat Min Mat Combat Hostiles Destroyed 8 | . 8 . . Guns 8 | . 8 . . Classes Destroyed 8 | . 7 1 . Worker 1 | . . 1 . Builder 1 | . 1 . . Hauler 1 | . 1 . . Recycler 1 | . 1 . . Mechanic 1 | . 1 . . Watcher 1 | . 1 . . Swarmer 6 | . 6 . . Grunt 2 | . 2 . . Best Kill Streak 6 | . 6 1 . Combat Bots Only 6 | . 6 . . Max Kills in Single Turn 1 | . 1 1 . Gunslinging . | . . . . Exploded . | . . . . Melee . | . . . . Uniques/NPCs Destroyed . | . . . . Combat | -11 -10 -10 -9 -------- Run | Yrd Mat Min Mat Hostile Shots Fired 49 | . 39 10 . Missed 4 | . 3 1 . Damage Taken 566 | . 443 123 . Core 118 | . 107 11 . Absorbed by Shields . | . . . . Core Remaining (%) 76 | 100 . 52 . Volleys Fired 44 | . 38 6 . Largest 2 | . 2 1 . Hottest 80 | . 50 80 . Shots Fired 70 | . 64 6 . Gun 64 | . 63 1 . Cannon . | . . . . Launcher 1 | . 1 . . Special 5 | . . 5 . Kinetic 64 | . 63 1 . Thermal 5 | . . 5 . Explosive 1 | . 1 . . Electromagnetic . | . . . . Robot Hit Streak 10 | . 10 7 . Robot Miss Streak 5 | . 5 . . Penetration Max . | . . . . Secondary Targets . | . . . . Shots Hit Robots 43 | . 37 6 . Core Hits 20 | . 19 1 . Critical Kills 1 | . 1 . . Critical Parts Destroyed . | . . . . Critical Strikes 1 | . 1 . . Destroy 1 | . 1 . . Melee Attacks . | . . . . Impact . | . . . . Slashing . | . . . . Piercing . | . . . . Sneak Attacks . | . . . . Combat Hostiles . | . . . . Follow-up Attacks . | . . . . Damage Inflicted 588 | . 520 68 . Guns 479 | . 466 13 . Cannons . | . . . . Explosions 54 | . 54 . . Melee . | . . . . Ramming . | . . . . Kinetic 479 | . 466 13 . Thermal 55 | . . 55 . Explosive 54 | . 54 . . Electromagnetic . | . . . . Impact . | . . . . Slashing . | . . . . Piercing . | . . . . Highest Corruption . | . . . . Average Corruption . | . . . . Corruption Purged . | . . . . Corruption Blocked . | . . . . Overload Shots . | . . . . Overflow Damage 6 | . 6 . . Projectiles . | . . . . Explosions 6 | . 6 . . Melee . | . . . . Knockbacks . | . . . . Impact . | . . . . Kinetic . | . . . . Secondary . | . . . . Self-Inflicted Damage 28 | . 28 . . Shots 1 | . 1 . . Rammed . | . . . . Targets Rammed . | . . . . Kicked . | . . . . Crushed . | . . . . Highest Temperature 187 | . 7 187 . Average Temperature 71 | . 3 103 . Received Heat Transfer 195 | . 129 66 . Siege Activations . | . . . . Robots Corrupted . | . . . . Combat Hostiles . | . . . . Parts Fried . | . . . . Impact Corruptions . | . . . . Robots Melted . | . . . . Combat Hostiles . | . . . . Parts Melted . | . . . . Heat Transferred 400 | . . 400 . Parts Sabotaged . | . . . . Parts Stolen . | . . . . Parts Stripped . | . . . . Power Chain Reactions . | . . . . Alert | -11 -10 -10 -9 ------- Run | Yrd Mat Min Mat Peak Influence 306 | . 306 171 . Initial 118 | . . 118 . Average 118 | . 131 122 . Maximum Alert Level 1 | . 1 . . Low Security (%) 82 | 100 60 100 100 Level 1 17 | . 39 . . Level 2 . | . . . . Level 3 . | . . . . Level 4 . | . . . . Level 5 . | . . . . High Security . | . . . . Max Security . | . . . . Squads Dispatched 1 | . 1 . . Investigation . | . . . . Extermination . | . . . . Reinforcement 1 | . 1 . . Assault . | . . . . Garrison . | . . . . Intercept . | . . . . Searches Triggered . | . . . . Construction Impeded . | . . . . Haulers Reinforced . | . . . . Active Scanning Responses . | . . . . Cargo Convoy Interrupts . | . . . . Stealth | -11 -10 -10 -9 --------- Run | Yrd Mat Min Mat Distress Signals 1 | . 1 . . Communications Jammed . | . . . . Distress Signals . | . . . . Times Spotted 13 | . 11 2 . Peak Tracking Total 7 | . 7 2 . Tactical Retreats 1 | . 1 . . Traps | -11 -10 -10 -9 ------- Run | Yrd Mat Min Mat Traps Triggered 1 | . 1 . . Indirectly . | . . . . Trap Hack Attempts . | . . . . Triggered . | . . . . Disarmed . | . . . . Reprogrammed . | . . . . Reused . | . . . . Traps Extracted . | . . . . Installed . | . . . . Triggered . | . . . . Machines | -11 -10 -10 -9 ---------- Run | Yrd Mat Min Mat Machines Disabled 2 | . 2 . . Max in Single Turn 2 | . 2 . . Machines Repaired . | . . . . Machines Dismantled . | . . . . Machines Sabotaged . | . . . . Overloaded Fab Kills . | . . . . Hacking | -11 -10 -10 -9 --------- Run | Yrd Mat Min Mat Machines Accessed 2 | . 2 . . Terminals 1 | . 1 . . Fabricators . | . . . . Repair Stations . | . . . . Recycling Units 1 | . 1 . . Scanalyzers . | . . . . Garrison Access . | . . . . Total Hacks 4 | . 4 . . Successful 2 | . 2 . . Failed 2 | . 2 . . Catastrophic 1 | . 1 . . Database Lockouts . | . . . . Manual 3 | . 3 . . Terminals 2 | . 2 . . Fabricators . | . . . . Repair Stations . | . . . . Recycling Units 2 | . 2 . . Scanalyzers . | . . . . Garrison Access . | . . . . Terminal Hacks . | . . . . Fabricator Hacks . | . . . . Repair Station Hacks . | . . . . Recycling Unit Hacks 1 | . 1 . . Report Inventory 1 | . 1 . . Scanalyzer . | . . . . Garrison Access Hacks . | . . . . Unauthorized Hacks 1 | . 1 . . Terminals . | . . . . Fabricators . | . . . . Repair Stations . | . . . . Recycling Units 1 | . 1 . . Reject 1 | . 1 . . Scanalyzers . | . . . . Garrison Access . | . . . . Data Cores Recovered . | . . . . Used . | . . . . Hacking Detections 1 | . 1 . . Full Trace Events . | . . . . Feedback Events . | . . . . Feedback Blocked . | . . . . Robot Schematics Acquired . | . . . . Robots Built . | . . . . Authchips . | . . . . Time . | . . . . Total Robot Build Rating . | . . . . Part Schematics Acquired . | . . . . Parts Built . | . . . . Authchips . | . . . . Time . | . . . . Total Part Build Rating . | . . . . Parts Repaired . | . . . . Time . | . . . . Parts Recycled . | . . . . Recycled Matter . | . . . . Retrieved Matter . | . . . . Retrieved Components . | . . . . Parts Scanalyzed . | . . . . Part Schematics Acquired . | . . . . Parts Damaged . | . . . . Bothacking | -11 -10 -10 -9 ------------ Run | Yrd Mat Min Mat Used RIF Installer . | . . . . Robots Hacked . | . . . . Non-combat . | . . . . Combat . | . . . . Robot Hacks Applied . | . . . . Relay Couplers Released . | . . . . Fabnet Peak Effective % . | . . . . Robots Rewired . | . . . . Allies Hacked . | . . . . Hacks Repelled . | . . . . Allies | -11 -10 -10 -9 -------- Run | Yrd Mat Min Mat Total Allies 3 | . . 3 . Largest Group 3 | . . 3 2 Highest-Rated Group 40 | . . 40 24 Highest-Rated Ally 16 | . . 16 16 Total Orders . | . . . . Ally Attacks 7 | . . 7 . Total Damage 86 | . . 86 . Kills 2 | . . 2 . Allies Corrupted . | . . . . Allies Melted . | . . . . Intel | -11 -10 -10 -9 ------- Run | Yrd Mat Min Mat Robot Analysis Total . | . . . . Derelict Logs Recovered 2 | . . 2 . Drone Launches . | . . . . Drone Recoveries . | . . . . Exploration | -11 -10 -10 -9 ------------- Run | Yrd Mat Min Mat Turns Passed 835 | 51 381 400 3 Spaces Moved 1005 | 48 364 591 2 Core 1 | 1 . . . Treads . | . . . . Legs . | . . . . Wheels 211 | 47 164 . . Hover 693 | . 100 591 2 Flight 100 | . 100 . . Fastest Speed 37 | 50 37 56 120 Average Speed 61 | 79 62 58 120 Slowest Speed 120 | 80 120 120 120 Overloaded Moves . | . . . . Propulsion Burnouts . | . . . . Robots Hopped 1 | . 1 . . Cave-ins Triggered . | . . . . Exploration Rate (%) 41 | 3 64 97 2 Regions Visited 3 Branch Regions 1 Pre-discovered Areas . | . . . . Known Exits Taken 2 | . 1 1 . Unknown Exits Taken 1 | 1 . . . Scrap Searched 1 | . . 1 . Spaces Dug . | . . . . Terrain Destroyed 5 | . 5 . . Melee . | . . . . Projectile . | . . . . AOE 5 | . 5 . . Terrain Rammed . | . . . . Walls Destroyed . | . . . . Machines Disabled . | . . . . Actions | -11 -10 -10 -9 --------- Run | Yrd Mat Min Mat Total 1149 | 57 453 637 2 Wait 54 | . 17 37 . Move 1000 | 47 361 590 2 Hop 1 | . 1 . . Pick Up 13 | 4 8 1 . Fast Attach 15 | 6 8 1 . Attach 3 | . 3 . . Detach . | . . . . Swap 3 | . 3 . . Drop 16 | . 14 2 . Fire 44 | . 38 6 . Melee . | . . . . Ram . | . . . . Kick . | . . . . Crush . | . . . . Escape Stasis . | . . . . Rewire . | . . . . Trap . | . . . . Miscellaneous . | . . . . Route ------- -11/Scrapyard -10/Materials (discovered 2 exits: *Mat / *Min) -10/Mines (discovered 2 exits: *Mat x2) -9/Materials History --------- Turn | Location | Event 8 | -11/Scrapyard | Discovered new exit (range 15) 52 | -11/Scrapyard | Entered Materials 314 | -10/Materials | Discovered new exit (range 16) 320 | -10/Materials | Build established: Mutant 428 | -10/Materials | Discovered new exit (range 6) 431 | -10/Materials | Identified exit to Mines 433 | -10/Materials | Entered Mines 481 | -10/Mines | Received a Rocket Launcher from a helpful Derelict 610 | -10/Mines | Learned Materials trap positions 615 | -10/Mines | Discovered new exit (range 15) 618 | -10/Mines | Learned Materials emergency access door positions 628 | -10/Mines | Identified exit to Materials 693 | -10/Mines | Assisted by bots powering up and referring to "LRC-V3" 772 | -10/Mines | A weapon hastily lodged in a ceiling crevice suddenly fell to the ground 826 | -10/Mines | Discovered exit to Materials (range 5) 833 | -10/Mines | Entered Materials 833 | -9/Materials | Accompanied by 2 allies 833 | -9/Materials | Evolved 2 slots: Propulsion x1, Utility x1 834 | -9/Materials | Loaded intel: 16 trap records 836 | -9/Materials | Self-destructed Last Messages --------------- operations..." YI-PAP(g) slips into the shadows. Trooper 1a: "Hello LRC-V3. What is your command?" Mercenary 1a: "Hello LRC-V3. What is your command?" Trooper 1b: "Hello LRC-V3. What is your command?" 00741_ T-07 Excavator is excavating. 00772_ An Enh. Flamer has been hastily shoved under some rubble with a note attached: "One is never enough." 00776_ Dropped Assault Rifle. 00776_ Acquired Enh. Flamer. 00798_ Hover Unit destroyed. 00810_ G-34 Mercenary destroyed. 00813_ Acquired 35 matter. 00814_ K-01 Serf collects debris. 00826_ EXIT=FOUND: MATERIALS PARAMETERS=PROPULSION+1,UTILITY+1 LOCATION=MATERIALS GOAL=ESCAPE Loading Materials trap records (x16)... Loading Materials emergency access points (x3)... Map ----- +----------------------------------------------------+ | ???????????????????????????????????????? | | ???????????????????????????????????????? | | ???????????????????????????????????????? | | ???????????????????????????????????????? | | ???????????????????????????????????????? | | ???????????????????????????????????????? | | ???????????????????????????????????????? | | ???????????????????????????????????????? | | ???????????????????????????????????????? | | ???????????????????????????????????????? | | ????????????????????## ???????????????? | | ????????????????????## ???????????????? | | ????????????????????## ???????????????? | | ????????????????????## ???????????????? | | ????????????????????## ??????????????? | | ????????????????????## ??????????????? | | ????????????????????## ??????????????? | | ????????????????????## ??????????????? | | ????????????????????## ??????????????? | | ????????????????????## ??????????????? | | ????????????????????## # "????????? | | ????????????????????## ######????????? | | ????????????????????## g ##????????? | | ????????????????????## ##????????? | | ????????????????????## g ##????????? | | ????????????????????#####@#####????????? | | ???????????????????? ????????? | | ??????????????????## """ [[?????????? | | ??????????????????## """ [[ ##?????? | | ??????????????????##[ """ [* ##?????? | | ??????????????????## ##?????? | | ??????????????????################?????? | | | | | | | | | | | | | | | | | | | | | | | | | | | | | | | | | | | | | +----------------------------------------------------+ Best States ------------- Heat Dissipation 35 Energy Generation 10 Energy Capacity 250 Matter Stores 300 Matter Capacity 300 Sight Range 16 Terrain Scan Density 10 Evasion (%) 62 Item Schematics ----------------- None Robot Schematics ------------------ None Fabricated ------------ Nothing Alien Tech Used ----------------- None Achievements -------------- None Challenges ------------ None Game ------ Seed MetaSchematicScrap Manual? 0 Play Time 00:09:47 Cumulative 11.0 hours Start 2024.03.31 @ 12:10:39 End 2024.03.31 @ 12:20:40 Sessions 1 Manual Loads 0 Difficulty Rogue Special Mode None Game No. 30 Rogue 30 Adventurer 0 Explorer 0 Win Type - Total 1 Types 1/0/0/0/0/0/0/0/0 Lore% 21 Gallery% 22 Achievement% 23 Wizard Run 0 Options --------- Layout 0 ASCII 0 Keyboard 0 Movement Mouse Keybinds 0 Fullscreen 2 Font 24/Smallcaps Map View 76x50 Zoom Use 0% Tactical HUD 1 Map Filters NONE Filters NONE Steam 1 RUN: b1e998d4-ab6f-44c7-99fb-25545af1c227